bitfinex/quotes_BTCUSD_20220211
["timestamp","ask_amount","ask_price","bid_price","bid_amount"]
[1644555777681,0.05,43069.0,43057.0,0.22876061]
[1644555777880,0.174262,43069.0,43057.0,0.22876061]
[1644555778080,0.01733782,43068.0,43057.0,0.22876061]
[1644555778280,0.11733782,43068.0,43058.0,0.323686]
[1644555778480,0.11733782,43068.0,43059.0,0.323686]
[1644555778683,0.17542382,43068.0,43059.0,0.00018149]
[1644555778884,0.058088,43066.0,43059.0,0.323686]
[1644555779084,0.32431625,43065.0,43058.0,0.00018149]
[1644555779282,0.091364,43063.0,43057.0,0.1471]
[1644555779484,0.05,43063.0,43057.0,0.1471]
[1644555779681,0.1,43063.0,43058.0,0.323686]
[1644555779881,0.05,43063.0,43058.0,0.32386749]
[1644555780082,0.05809446,43062.0,43058.0,0.32386749]
[1644555780282,0.15871279,43062.0,43060.0,0.23590069]
[1644555780827,0.10871279,43062.0,43060.0,0.55958669]
[1644555781021,0.10871279,43062.0,43060.0,0.23590069]
[1644555781225,0.10809446,43062.0,43060.0,0.23590069]
[1644555781422,0.28237146,43062.0,43060.0,0.23590069]
[1644555782021,0.29970928,43062.0,43060.0,0.23590069]
[1644555782222,0.34970928,43062.0,43060.0,0.23590069]
[1644555783224,0.29161482,43062.0,43060.0,0.55958669]
[1644555783627,0.24161482,43062.0,43060.0,0.65958669]
[1644555783830,0.06733782,43062.0,43060.0,0.65976818]
[1644555784025,0.01733782,43062.0,43060.0,0.65976818]
[1644555784225,0.01733782,43062.0,43061.0,0.61119682]
[1644555784570,0.01733782,43062.0,43061.0,0.71137831]
[1644555784770,0.01733782,43062.0,43061.0,0.76944831]
[1644555785878,0.00062007,43064.0,43063.0,0.581745]
[1644555785879,7e-08,43064.0,43063.0,0.581745]
[1644555786072,0.0170367,43083.0,43064.0,0.323686]
[1644555786272,0.0170367,43083.0,43078.0,0.37097837]
[1644555786476,0.058059,43082.0,43078.0,0.37097837]
[1644555786673,0.558059,43082.0,43078.0,0.37097837]
[1644555787074,0.43536643,43082.0,43078.0,0.37097837]
[1644555787474,0.43585385,43082.0,43078.0,0.37097837]
[1644555787873,0.43585385,43082.0,43078.0,0.07562892]
[1644555787874,0.323686,43081.0,43078.0,0.07562892]
[1644555788073,0.091364,43080.0,43078.0,0.07562892]
[1644555788331,0.323686,43080.0,43078.0,0.07562892]
[1644555789425,0.158061,43081.0,43078.0,0.07562892]
[1644555789626,0.05,43079.0,43078.0,0.07562892]
[1644555789825,0.15854842,43081.0,43078.0,0.07562892]
[1644555790026,0.323686,43080.0,43078.0,0.07562892]
[1644555790226,0.27466942,43081.0,43078.0,0.07562892]
[1644555790627,0.091364,43079.0,43078.0,0.07562892]
[1644555790830,0.274182,43081.0,43078.0,0.07562892]
[1644555793970,0.274182,43081.0,43077.0,0.1471]
[1644555794170,0.058064,43080.0,43077.0,0.1471]
[1644555794770,0.05,43079.0,43077.0,0.1471]
[1644555795071,0.1,43079.0,43077.0,0.1471]
[1644555795271,0.05,43079.0,43077.0,0.1471]
[1644555795472,0.05,43079.0,43078.0,0.07853475]
[1644555795671,0.158064,43080.0,43078.0,0.07853475]
[1644555795921,0.1587124,43080.0,43078.0,0.07853475]
[1644555796722,0.158064,43080.0,43078.0,0.07853475]
[1644555797321,0.05,43079.0,43078.0,0.07853475]
[1644555797724,0.158064,43080.0,43078.0,0.07853475]
[1644555797926,0.158064,43080.0,43077.0,0.1471]
[1644555800172,0.323686,43079.0,43077.0,0.1471]
[1644555800471,0.41200331,43080.0,43074.0,0.058063]
[1644555800671,0.116126,43079.0,43069.0,0.42512738]
[1644555800872,0.116126,43079.0,43069.0,0.1]
[1644555800873,0.207508,43077.0,43069.0,0.1]
[1644555801073,0.51956229,43075.0,43068.0,0.01824234]
[1644555801275,0.116148,43076.0,43068.0,0.01824234]
[1644555801276,0.091364,43071.0,43068.0,0.01824234]
[1644555801573,0.323686,43071.0,43068.0,0.16534234]
[1644555801772,0.11615,43071.0,43068.0,0.16534234]
[1644555802372,0.11615,43071.0,43069.0,0.323686]
[1644555802771,0.11615,43071.0,43069.0,0.423686]
[1644555803623,0.11615,43071.0,43069.0,0.570786]
[1644555804222,0.11615,43071.0,43069.0,0.28122332]
[1644555804421,0.11615,43071.0,43069.0,0.323686]
[1644555804622,0.11615,43071.0,43069.0,0.323708]
[1644555805425,0.11615,43071.0,43068.0,0.058071]
[1644555805624,0.11615,43071.0,43069.0,0.323708]
[1644555805825,0.11615,43071.0,43066.0,0.058073]
[1644555806027,0.058073,43070.0,43067.0,0.323708]
[1644555806327,0.108073,43069.0,43067.0,0.323708]
[1644555806525,0.05,43068.0,43067.0,0.323708]
[1644555807171,0.05,43068.0,43067.0,0.173708]
[1644555813726,0.108073,43069.0,43067.0,0.173708]
[1644555814571,0.108073,43069.0,43067.0,0.17521285]
[1644555819726,0.108073,43069.0,43067.0,0.173708]
[1644555821829,0.058073,43069.0,43068.0,0.28198038]
[1644555822073,0.116146,43070.0,43068.0,0.381773]
[1644555822273,0.11679444,43070.0,43068.0,0.66829272]
[1644555822474,0.11679444,43070.0,43068.0,0.381781]
[1644555822877,0.11679444,43070.0,43068.0,0.481781]
[1644555823277,0.05,43069.0,43068.0,0.481781]
[1644555823476,0.05,43069.0,43068.0,0.451664]
[1644555823677,0.05,43069.0,43068.0,0.481781]
[1644555823876,0.05,43069.0,43068.0,0.451664]
[1644555824077,0.05,43069.0,43068.0,0.481781]
[1644555824277,0.05,43069.0,43068.0,0.451664]
[1644555824476,0.05,43069.0,43068.0,0.481781]
[1644555824677,0.05,43069.0,43068.0,0.451664]
[1644555824876,0.05,43069.0,43068.0,0.158065]
[1644555825277,0.05,43069.0,43068.0,0.058065]
[1644555825676,0.05,43069.0,43068.0,0.381781]
[1644555825926,0.05,43069.0,43068.0,0.158065]
[1644555826328,0.05,43069.0,43068.0,0.1]
[1644555826725,0.05,43069.0,43066.0,0.058077]
[1644555826934,0.05,43069.0,43064.0,0.01863858]
[1644555826935,0.33023014,43068.0,43064.0,0.01863858]
[1644555827127,0.19579791,43066.0,43064.0,0.01863858]
[1644555827327,0.283792,43065.0,43064.0,0.01863858]
[1644555827526,0.391885,43065.0,43064.0,0.01863858]
[1644555827727,0.391885,43065.0,43064.0,0.01199049]
[1644555828031,1.04172551,43065.0,43064.0,0.01199049]
[1644555828226,1.0483736,43065.0,43064.0,0.01199049]
[1644555828429,1.04172551,43065.0,43063.0,0.69665]
[1644555828629,0.323716,43064.0,43063.0,0.69665]
[1644555828928,0.373716,43064.0,43063.0,0.69665]
[1644555829128,0.65855071,43064.0,43063.0,0.69665]
[1644555829581,0.9032981,43064.0,43063.0,0.69665]
[1644555829780,0.9495981,43064.0,43063.0,0.69665]
[1644555829978,0.94953002,43064.0,43063.0,0.348054]
[1644555830177,1.28880213,43064.0,43063.0,0.348054]
[1644555830379,0.341897,43062.0,43057.0,0.00018149]
[1644555830582,0.323716,43056.0,43052.0,0.00018149]
[1644555830777,0.283792,43054.0,43051.0,0.00215406]
[1644555830977,0.283792,43054.0,43052.0,0.00018149]
[1644555831178,0.323716,43052.0,43051.0,0.00233555]
[1644555831380,0.60851214,43052.0,43051.0,0.00233555]
[1644555831580,0.373716,43052.0,43051.0,0.00018149]
[1644555831780,0.373716,43052.0,43050.0,0.00145287]
[1644555831781,0.283792,43051.0,43050.0,0.00145287]
[1644555832180,0.05,43051.0,43050.0,0.00145287]
[1644555832579,0.323716,43051.0,43050.0,0.00145287]
[1644555834330,0.333779,43051.0,43050.0,0.00145287]
[1644555835533,0.60326569,43051.0,43050.0,0.00145287]
[1644555838978,0.60991378,43051.0,43050.0,0.00145287]
[1644555839778,0.60991378,43051.0,43050.0,0.00163259]
[1644555840380,0.61656187,43051.0,43050.0,0.00145287]
[1644555841029,0.60326569,43051.0,43050.0,0.00145287]
[1644555841231,0.333779,43051.0,43050.0,0.00145287]
[1644555842228,0.34042709,43051.0,43050.0,0.00145287]
[1644555844331,0.34707518,43051.0,43050.0,0.00145287]
[1644555846384,0.35372327,43051.0,43050.0,0.00145287]
[1644555846582,0.34042709,43051.0,43050.0,0.00145287]
[1644555848431,0.34042709,43051.0,43050.0,0.00064594]
[1644555848432,0.64707518,43051.0,43050.0,0.00064594]
[1644555848629,0.64707518,43051.0,43049.0,0.00017972]
[1644555848630,1.04042709,43051.0,43049.0,0.00017972]
[1644555848830,1.04042709,43051.0,43048.0,0.00163755]
[1644555848831,0.283779,43050.0,43048.0,0.00181727]
[1644555849233,0.39690578,43049.0,43046.0,0.0021]
[1644555849429,0.39690578,43049.0,43047.0,0.00017973]
[1644555849430,0.341902,43048.0,43047.0,0.00017973]
[1644555849627,0.341902,43048.0,43046.0,0.0021]
[1644555849827,0.283779,43047.0,43046.0,0.0021]
[1644555850230,0.333779,43047.0,43046.0,0.0021]
[1644555850633,0.683779,43047.0,43046.0,0.0021]
[1644555850831,0.341912,43045.0,43039.0,0.0021]
[1644555851030,0.341912,43045.0,43044.0,0.00016095]
[1644555851230,0.55,43044.0,43039.0,0.0021]
[1644555851532,0.31725654,43041.0,43039.0,0.0021]
[1644555851733,0.283779,43040.0,43039.0,0.0021]
[1644555851936,0.333779,43040.0,43039.0,0.0021]
[1644555852781,0.60228018,43040.0,43039.0,0.0021]
[1644555853783,0.65184887,43040.0,43039.0,0.0021]
[1644555854086,0.333779,43040.0,43039.0,0.0021]
[1644555854483,0.34042709,43040.0,43039.0,0.0021]
[1644555856327,0.34707518,43040.0,43039.0,0.0021]
[1644555856526,0.34042709,43040.0,43039.0,0.0021]
[1644555856829,0.84042709,43040.0,43039.0,0.0021]
[1644555857628,1.11776431,43040.0,43039.0,0.0021]
[1644555860380,1.1244124,43040.0,43039.0,0.0021]
[1644555860678,1.11776431,43040.0,43039.0,0.0021]
[1644555861984,0.84042709,43040.0,43039.0,0.0021]
[1644555862184,0.79042709,43040.0,43039.0,0.0021]
[1644555862382,0.79042709,43040.0,43039.0,0.325897]
[1644555862383,0.51329618,43040.0,43039.0,0.325897]
[1644555862582,0.50664809,43040.0,43039.0,0.0021]
[1644555862784,0.50664809,43040.0,43039.0,0.472197]
[1644555862981,0.00664809,43040.0,43039.0,0.472197]
[1644555864129,0.00664809,43040.0,43039.0,1.100797]
[1644555864330,0.4209,43053.0,43042.0,0.05809186]
[1644555864535,0.5,43054.0,43043.0,0.76304407]
[1644555864729,0.5,43054.0,43052.0,0.08321079]
[1644555864933,0.5,43054.0,43053.0,0.0463]
[1644555865130,0.90453961,43054.0,43053.0,0.0463]
[1644555865331,0.40453961,43054.0,43053.0,0.0463]
[1644555866132,0.46263261,43054.0,43053.0,0.0463]
[1644555866333,0.46263261,43054.0,43053.0,0.370097]
[1644555866734,0.058093,43054.0,43053.0,0.370097]
[1644555866935,0.058093,43054.0,43053.0,0.66504473]
[1644555867179,0.058093,43054.0,43053.0,0.0463]
[1644555867779,0.40771221,43054.0,43053.0,0.0463]
[1644555868078,0.05,43055.0,43053.0,0.0463]
[1644555868277,0.05809,43056.0,43054.0,0.323797]
[1644555868477,0.05809,43056.0,43055.0,0.0463]
[1644555868677,0.05809,43056.0,43055.0,0.370097]
[1644555868877,0.05809,43056.0,43055.0,0.470097]
[1644555870379,0.05809,43056.0,43055.0,0.1463]
[1644555870833,0.05809,43056.0,43055.0,0.0463]
[1644555871027,0.04809,43056.0,43055.0,0.0463]
[1644555871228,0.1,43057.0,43055.0,0.0463]
[1644555871428,0.05,43057.0,43055.0,0.0463]
[1644555871629,0.15866115,43058.0,43056.0,0.058088]
[1644555871830,0.15866115,43058.0,43057.0,0.0463]
[1644555872030,0.44244015,43058.0,43057.0,0.0463]
[1644555872430,0.441865,43058.0,43057.0,0.0463]
[1644555874130,0.441865,43058.0,43057.0,0.32899876]
[1644555874131,0.058086,43058.0,43057.0,0.32899876]
[1644555874333,0.00057514,43060.0,43058.0,0.323797]
[1644555874582,0.00057514,43060.0,43059.0,0.44986063]
[1644555874785,0.00057514,43060.0,43059.0,0.96048971]
[1644555875180,0.01809884,43068.0,43059.0,0.96048971]
[1644555875380,0.01809884,43068.0,43067.0,0.06792928]
[1644555875583,0.01809884,43068.0,43067.0,0.41262465]
[1644555875782,0.01809884,43068.0,43067.0,0.73642165]
[1644555875980,0.01809884,43068.0,43067.0,0.83642165]
[1644555876482,0.01809884,43068.0,43067.0,0.89449465]
[1644555876682,0.07563672,43070.0,43068.0,0.323797]
[1644555876883,0.07563672,43070.0,43069.0,0.0463]
[1644555877286,0.12563672,43070.0,43069.0,0.0463]
[1644555877485,0.1,43070.0,43069.0,0.0463]
[1644555877885,0.05,43070.0,43069.0,0.104369]
[1644555878085,0.05,43071.0,43069.0,0.428166]
[1644555878333,0.05,43071.0,43069.0,0.104369]
[1644555878729,0.05,43071.0,43070.0,0.323797]
[1644555878929,0.05,43071.0,43070.0,0.0463]
[1644555886744,0.05,43071.0,43070.0,0.370097]
[1644555887143,0.05,43071.0,43070.0,0.470097]
[1644555887443,0.05,43071.0,43070.0,0.1463]
[1644555887846,0.00057515,43073.0,43070.0,0.48590898]
[1644555888047,0.00057515,43073.0,43072.0,0.05]
[1644555888248,0.00057515,43073.0,43072.0,1.414812]
[1644555888249,5.15e-06,43073.0,43072.0,1.414812]
[1644555888645,5.15e-06,43073.0,43072.0,2.211312]
[1644555889044,5.15e-06,43073.0,43072.0,1.911312]
[1644555889446,0.00057515,43074.0,43072.0,1.911312]
[1644555889692,0.00057515,43074.0,43073.0,1.41121777]
[1644555889995,0.00057515,43074.0,43073.0,2.25400777]
[1644555890595,0.00057515,43074.0,43073.0,2.27206281]
[1644555890796,0.00057515,43074.0,43073.0,2.21401681]
[1644555891095,0.00044386,43075.0,43073.0,2.13791608]
[1644555891293,0.00044386,43075.0,43074.0,0.93802776]
[1644555891492,0.00044386,43075.0,43074.0,2.00460476]
[1644555891692,0.00044386,43075.0,43074.0,2.10460476]
[1644555892294,0.00044386,43076.0,43074.0,2.10460476]
[1644555892494,0.00044386,43076.0,43075.0,1.60455712]
[1644555892695,0.00044386,43076.0,43075.0,1.65085712]
[1644555892893,0.058051,43081.0,43075.0,1.75085712]
[1644555893093,0.058051,43081.0,43079.0,0.30447604]
[1644555893343,0.058051,43081.0,43080.0,0.0463]
[1644555893536,0.058051,43081.0,43080.0,0.370097]
[1644555893938,0.058051,43081.0,43080.0,0.470097]
[1644555895540,0.058049,43084.0,43081.0,0.058049]
[1644555895740,0.00064708,43083.0,43082.0,0.370097]
[1644555896139,0.00064708,43083.0,43082.0,0.470097]
[1644555896339,0.00064708,43083.0,43082.0,0.75577115]
[1644555896542,0.00026326,43084.0,43082.0,0.75577115]
[1644555896741,0.05831026,43085.0,43083.0,0.14036616]
[1644555896943,0.05869407,43085.0,43084.0,0.0463]
[1644555897784,0.058047,43085.0,43084.0,0.0463]
[1644555897988,0.0568734,43085.0,43084.0,0.0463]
[1644555898184,0.05608806,43085.0,43084.0,0.0463]
[1644555898984,0.05608806,43085.0,43084.0,0.370097]
[1644555899186,0.05608806,43085.0,43084.0,0.1463]
[1644555899387,0.00026326,43086.0,43084.0,0.4329691]
[1644555899687,0.15861633,43087.0,43085.0,0.38184]
[1644555899888,0.00026326,43086.0,43085.0,0.48184]
[1644555900086,0.15830726,43087.0,43085.0,0.52814]
[1644555900288,0.058044,43087.0,43086.0,0.30829425]
[1644555900491,0.058044,43087.0,43086.0,0.67839125]
[1644555900687,0.00083559,43088.0,43086.0,0.45459425]
[1644555900935,0.00083559,43088.0,43087.0,0.381835]
[1644555901133,0.00057233,43088.0,43087.0,0.428135]
[1644555901335,0.42,43089.0,43087.0,0.81961819]
[1644555901533,0.42,43089.0,43088.0,0.52439445]
[1644555901747,0.42,43089.0,43088.0,0.89449145]
[1644555901933,0.42,43089.0,43088.0,0.99449145]
[1644555902134,0.42,43089.0,43088.0,0.75581229]
[1644555902333,0.42,43089.0,43088.0,0.470097]
[1644555902533,0.42,43089.0,43088.0,0.76043598]
[1644555902733,0.42,43089.0,43088.0,0.49182902]
[1644555902936,0.47,43089.0,43088.0,0.49182902]
[1644555904137,0.42,43089.0,43088.0,0.7769826]
[1644555904587,0.42,43089.0,43088.0,0.8269826]
[1644555904988,0.42,43089.0,43088.0,0.80525058]
[1644555905387,0.42,43089.0,43088.0,1.50150058]
[1644555905589,0.00061935,43091.0,43089.0,1.281825]
[1644555905590,0.00026326,43090.0,43089.0,1.281825]
[1644555905796,0.00061935,43091.0,43090.0,0.73238433]
[1644555905995,9.35e-06,43091.0,43090.0,1.81193341]
[1644555906195,0.01946959,43097.0,43090.0,1.91193341]
[1644555906390,0.01946959,43097.0,43093.0,0.05]
[1644555906591,0.01946959,43097.0,43094.0,0.428123]
[1644555906792,0.05802502,43105.0,43095.0,0.30149944]
[1644555906992,0.05802502,43105.0,43103.0,0.32492589]
[1644555907193,0.05802502,43105.0,43094.0,0.38595346]
[1644555907194,0.02426729,43101.0,43094.0,0.38595346]
[1644555907493,0.37940457,43100.0,43095.0,0.447293]
[1644555907694,0.05,43099.0,43097.0,0.323797]
[1644555907893,0.05,43099.0,43098.0,0.0463]
[1644555908095,0.05,43099.0,43098.0,0.370097]
[1644555908340,0.05,43099.0,43098.0,0.470097]
[1644555908533,0.108024,43099.0,43098.0,0.470097]
[1644555909334,0.108024,43099.0,43098.0,0.75989906]
[1644555909632,0.058024,43099.0,43098.0,0.75989906]
[1644555909833,0.19094508,43101.0,43098.0,0.75989906]
[1644555909834,0.02426729,43101.0,43098.0,0.75989906]
[1644555910033,0.02488708,43101.0,43099.0,0.058018]
[1644555910234,0.02488708,43101.0,43100.0,0.65584439]
[1644555910432,0.02488708,43101.0,43100.0,0.370097]
[1644555910633,0.02488708,43101.0,43100.0,0.470097]
[1644555911035,0.02426729,43101.0,43100.0,0.470097]
[1644555911433,0.07426729,43101.0,43100.0,0.470097]
[1644555912182,0.02426729,43101.0,43100.0,0.470097]
[1644555914783,0.02564117,43101.0,43100.0,0.470097]
[1644555914984,0.02564117,43101.0,43100.0,0.1463]
[1644555915384,0.02564117,43101.0,43100.0,0.0463]
[1644555915585,0.02564117,43101.0,43099.0,0.3235]
[1644555915841,0.17412663,43099.0,43091.0,0.02005176]
[1644555916034,0.3235,43098.0,43091.0,0.02005176]
[1644555916235,0.05,43097.0,43091.0,0.02005176]
[1644555916432,0.05,43097.0,43092.0,0.3235]
[1644555916632,0.05,43097.0,43091.0,0.02005176]
[1644555916834,0.05804122,43095.0,43091.0,0.03806451]
[1644555917034,0.058042,43094.0,43091.0,0.01801275]
[1644555917233,0.3235,43093.0,43091.0,0.01801275]
[1644555917433,0.3235,43092.0,43091.0,0.01801275]
[1644555917636,0.334122,43092.0,43091.0,0.01801275]
[1644555917834,0.05,43092.0,43091.0,0.01801275]
[1644555918033,0.3735,43092.0,43091.0,0.01801275]
[1644555918235,0.284122,43092.0,43091.0,0.01801275]
[1644555918838,0.284122,43092.0,43090.0,0.69622]
[1644555919036,0.3735,43091.0,43090.0,0.69622]
[1644555919234,0.1,43091.0,43090.0,0.69622]
[1644555919435,0.4235,43091.0,43090.0,0.69622]
[1644555919679,0.1,43091.0,43090.0,0.69622]
[1644555920279,0.05,43091.0,43090.0,0.69622]
[1644555921283,0.3735,43091.0,43090.0,0.69622]
[1644555921484,0.05,43091.0,43090.0,0.69622]
[1644555922285,0.00139542,43095.0,43092.0,0.9]
[1644555922483,0.00139542,43095.0,43093.0,0.3235]
[1644555922686,0.00165806,43095.0,43093.0,0.3235]
[1644555922883,0.058026,43094.0,43093.0,0.3235]
[1644555923084,0.058026,43094.0,43093.0,0.1]
[1644555923085,0.0786172,43094.0,43093.0,0.1]
[1644555923534,0.0786172,43094.0,43093.0,0.158036]
[1644555924137,0.0786172,43094.0,43093.0,0.204336]
[1644555924333,0.0786172,43094.0,43093.0,0.104336]
[1644555925533,0.058026,43094.0,43093.0,0.104336]
[1644555927682,0.058026,43094.0,43093.0,0.427836]
[1644555927884,0.058026,43094.0,43093.0,0.39737]
[1644555928083,0.058026,43094.0,43093.0,0.104336]
[1644555928386,0.058026,43094.0,43093.0,0.427836]
[1644555928584,0.058026,43094.0,43093.0,0.3698]
[1644555928884,0.058026,43094.0,43093.0,0.339334]
[1644555929083,0.058026,43094.0,43093.0,0.3698]
[1644555929286,0.058026,43094.0,43092.0,0.3235]
[1644555929488,0.058026,43094.0,43091.0,0.3235]
[1644555929684,0.05938999,43094.0,43091.0,0.3235]
[1644555930287,0.05938999,43094.0,43092.0,0.3235]
[1644555930486,0.32038677,43092.0,43091.0,0.3235]
[1644555930687,0.284122,43091.0,43090.0,0.69622]
[1644555930937,0.60218334,43091.0,43090.0,0.69622]
[1644555931338,0.37049875,43092.0,43090.0,0.69622]
[1644555931736,0.05026264,43092.0,43090.0,1.01972]
[1644555931937,0.00026264,43092.0,43090.0,1.01972]
[1644555932139,0.05805124,43092.0,43090.0,0.76774407]
[1644555932337,0.00026264,43092.0,43090.0,0.76774407]
[1644555932537,0.1661,43093.0,43090.0,0.76774407]
[1644555932538,0.16636264,43093.0,43091.0,0.3235]
[1644555932737,0.00026264,43092.0,43090.0,0.78787701]
[1644555933040,0.16636264,43093.0,43090.0,0.78787701]
[1644555933236,0.00026264,43092.0,43090.0,0.78787701]
[1644555933436,0.16636264,43093.0,43090.0,0.78787701]
[1644555933637,0.00026264,43092.0,43091.0,0.3235]
[1644555933837,0.1661,43093.0,43090.0,0.71635294]
[1644555934688,0.00136069,43091.0,43090.0,0.71635294]
[1644555934886,0.00136069,43091.0,43090.0,0.73454928]
[1644555935085,0.00136069,43091.0,43090.0,1.03791634]
[1644555936788,0.00136069,43091.0,43090.0,1.05695081]
[1644555937191,0.00136069,43091.0,43090.0,1.01972]
[1644555939136,0.32486069,43091.0,43090.0,0.69622]
[1644555939337,0.05136069,43091.0,43090.0,0.69622]
[1644555939636,0.00136069,43091.0,43090.0,0.7144837]
[1644555939838,0.68437274,43091.0,43090.0,0.7144837]
[1644555940036,0.73437274,43091.0,43090.0,0.7144837]
[1644555940837,0.73437274,43091.0,43090.0,0.73311787]
[1644555941037,0.75550461,43091.0,43090.0,0.73311787]
[1644555941238,0.75550461,43091.0,43090.0,0.69622]
[1644555941239,1.03796362,43091.0,43090.0,0.69622]
[1644555941643,1.03796362,43091.0,43090.0,0.6180552]
[1644555941644,0.75550461,43091.0,43090.0,0.6180552]
[1644555941842,0.82627242,43091.0,43090.0,0.6180552]
[1644555942091,0.30619334,43084.0,43080.0,0.00202467]
[1644555942292,0.284122,43081.0,43078.0,0.08464019]
[1644555942689,0.334122,43081.0,43078.0,0.08464019]
[1644555942892,0.3235,43080.0,43078.0,0.08464019]
[1644555943291,0.3235,43080.0,43079.0,0.36618258]
[1644555943491,0.10807,43081.0,43072.0,0.3]
[1644555943692,0.381576,43079.0,43069.0,0.4203]
[1644555943893,0.05,43081.0,43070.0,0.3235]
[1644555943894,0.05807565,43077.0,43070.0,0.3235]
[1644555944093,0.05,43079.0,43064.0,0.3837]
[1644555944293,0.058072,43076.0,43065.0,0.3235]
[1644555944495,0.24179592,43072.0,43064.0,0.45287777]
[1644555944694,0.05,43072.0,43064.0,0.35287777]
[1644555944892,0.05,43072.0,43065.0,0.3235]
[1644555945096,0.05,43072.0,43064.0,0.41095677]
[1644555945295,0.058079,43071.0,43064.0,0.41095677]
[1644555945493,0.058079,43071.0,43070.0,0.35167132]
[1644555945693,0.439658,43071.0,43070.0,0.35167132]
[1644555947338,0.364122,43070.0,43068.0,0.00052881]
[1644555947538,0.414122,43070.0,43068.0,0.00052881]
[1644555947741,0.4035,43069.0,43068.0,0.00052881]
[1644555948039,0.08,43069.0,43068.0,0.00052881]
[1644555948238,0.08,43069.0,43064.0,0.35287777]
[1644555948438,0.08,43068.0,43067.0,0.06523799]
[1644555948637,0.08,43068.0,43067.0,0.38873799]
[1644555948838,0.13,43068.0,43067.0,0.06523799]
[1644555949038,0.4535,43068.0,43067.0,0.06523799]
[1644555949439,0.13,43068.0,43064.0,0.71779833]
[1644555949686,0.13,43068.0,43065.0,0.32402885]
[1644555950189,0.674237,43073.0,43065.0,0.32402885]
[1644555950190,0.45557831,43078.0,43071.0,0.0975272]
[1644555950388,0.3235,43073.0,43071.0,0.0975272]
[1644555953946,0.3735,43073.0,43072.0,0.07893385]
[1644555954344,0.3735,43073.0,43071.0,0.0975272]
[1644555955443,0.3735,43073.0,43071.0,0.16630536]
[1644555955844,0.3735,43073.0,43071.0,0.0975272]
[1644555956643,0.68682028,43073.0,43071.0,0.0975272]
[1644555958686,0.63682028,43073.0,43071.0,0.0975272]
[1644555960289,0.19032201,43072.0,43071.0,0.0975272]
[1644555960492,0.47444401,43072.0,43070.0,0.00052879]
[1644555960690,0.59068417,43071.0,43070.0,0.00052879]
[1644555961139,0.86465818,43071.0,43070.0,0.00052879]
[1644555961341,0.96905018,43071.0,43070.0,0.00052879]
[1644555961538,1.11905018,43071.0,43066.0,0.0011]
[1644555961738,0.05,43067.0,43066.0,0.0011]
[1644555961938,0.0963,43067.0,43066.0,0.0011]
[1644555962540,0.0963,43067.0,43063.0,0.0022]
[1644555962739,0.380422,43067.0,43063.0,0.0022]
[1644555962940,0.480422,43067.0,43063.0,0.0022]
[1644555963144,0.380422,43067.0,43063.0,0.09152207]
[1644555963339,0.330422,43067.0,43063.0,0.09152207]
[1644555964039,0.330422,43067.0,43064.0,0.11836752]
[1644555964238,0.3235,43066.0,43064.0,0.11836752]
[1644555964439,0.0463,43066.0,43065.0,0.28556458]
[1644555964690,0.284122,43067.0,43065.0,0.28556458]
[1644555965091,0.284122,43067.0,43065.0,0.34365389]
[1644555965792,0.284122,43067.0,43065.0,0.06028931]
[1644555969942,0.284122,43067.0,43066.0,0.28555684]
[1644555970143,0.01838238,43074.0,43067.0,0.3235]
[1644555970340,0.01838238,43074.0,43069.0,0.3235]
[1644555970738,0.01838238,43074.0,43071.0,0.08599743]
[1644555970939,0.3235,43073.0,43071.0,0.36583402]
[1644555971241,0.40077161,43076.0,43071.0,0.36583402]
[1644555971441,0.3235,43075.0,43071.0,0.42390545]
[1644555971839,0.3235,43080.0,43071.0,0.42390545]
[1644555972287,0.3235,43080.0,43072.0,0.058069]
[1644555972487,0.3235,43080.0,43073.0,0.05806974]
[1644555972687,0.284122,43075.0,43072.0,0.17420847]
[1644555972887,0.3235,43075.0,43072.0,0.17420847]
[1644555973291,0.3235,43075.0,43072.0,0.11613947]
[1644555974187,0.3735,43075.0,43072.0,0.11613947]
[1644555974389,0.05,43075.0,43074.0,0.06945468]
[1644555974789,0.3235,43081.0,43074.0,0.06945468]
[1644555974990,0.3235,43081.0,43075.0,0.11612908]
[1644555975191,0.284122,43079.0,43078.0,0.2940524]
[1644555975592,0.334122,43079.0,43075.0,0.11612908]
[1644555975843,0.116136,43085.0,43075.0,0.11612908]
[1644555976040,0.3879,43087.0,43075.0,0.11612908]
[1644555976041,0.3879,43087.0,43076.0,0.48593419]
[1644555976239,0.1183,43089.0,43087.0,0.07928821]
[1644555976438,0.3235,43088.0,43087.0,0.07928821]
[1644555977037,0.3235,43088.0,43087.0,0.13734198]
[1644555977240,0.3235,43088.0,43087.0,0.05805377]
[1644555977438,0.3235,43088.0,43081.0,0.0463]
[1644555978137,0.3735,43088.0,43081.0,0.0463]
[1644555978338,0.284122,43086.0,43081.0,0.33009404]
[1644555978537,0.3235,43086.0,43081.0,0.33009404]
[1644555978739,0.3235,43086.0,43084.0,0.08876769]
[1644555978940,0.36672199,43089.0,43084.0,0.08876769]
[1644555978941,0.3235,43087.0,43084.0,0.08876769]
[1644555979142,0.3235,43087.0,43084.0,0.14682626]
[1644555979341,0.284122,43086.0,43084.0,0.14682626]
[1644555979592,0.05,43087.0,43084.0,0.14682626]
[1644555979794,0.3235,43086.0,43084.0,0.14682626]
[1644555980193,0.00199649,43088.0,43084.0,0.14682626]
[1644555980393,0.284122,43087.0,43084.0,0.14682626]
[1644555980594,0.05,43087.0,43084.0,0.14682626]
[1644555980796,0.3235,43086.0,43084.0,0.05805857]
[1644555980993,0.00199649,43088.0,43084.0,0.05805857]
[1644555981195,0.334122,43087.0,43084.0,0.05805857]
[1644555981496,0.05,43087.0,43084.0,0.05805857]
[1644555981697,0.00199649,43088.0,43085.0,0.36304228]
[1644555981895,0.00199649,43088.0,43085.0,0.07333125]
[1644555983735,0.00199649,43088.0,43084.0,0.05858064]
[1644555983938,0.2865175,43087.0,43084.0,0.05858064]
[1644555984141,0.2865175,43087.0,43084.0,0.00052207]
[1644555984142,0.3235,43086.0,43084.0,0.00052207]
[1644555984340,0.3235,43086.0,43079.0,0.05806941]
[1644555984536,0.3235,43086.0,43083.0,0.00052208]